[Event "EYTCC Open U18 2022"]
[Site "Thessaloniki"]
[Date "2022.07.13"]
[Round "2.27"]
[White "Turk, Talha Gunes"]
[Black "Zlatkov, Anton"]
[Result "1-0"]
[ECO "B30"]
[WhiteElo "1597"]
[BlackElo "2149"]
[Annotator "ChessBase"]
[PlyCount "167"]
[EventDate "2022.07.12"]
[EventType "team-tourn"]
[EventCountry "GRE"]
[SourceTitle "playchess.com"]
[Source "ChessBase"]
[SourceQuality "1"]
[WhiteTeam "Turkey"]
[BlackTeam "Macedonia"]
[WhiteTeamCountry "TUR"]
[BlackTeamCountry "MKD"]
[TimeControl "40/5400+30:1800+30"]

1. e4 {[%emt 0:00:09]} c5 {[%emt 0:00:08]} 2. Nf3 {[%emt 0:00:04]} Nc6 {[%emt 0:00:17]} 3. c3 {[%emt 0:00:22]} Nf6 {[%emt 0:00:39]} 4. Bd3 {[%emt 0:00:40]} d6 {[%emt 0:00:40]} 5. h3 {[%emt 0:00:30]} e6 {[%emt 0:03:59]} 6. O-O {[%emt 0:00:20]} d5 {[%emt 0:03:02]} 7. Qe2 {[%emt 0:14:56]} Be7 {[%emt 0:11:01]} 8. e5 {[%emt 0:08:48]} Nd7 {[%emt 0:00:25]} 9. Bc2 {[%emt 0:00:07]} b6 {[%emt 0:06:34]} 10. d4 {[%emt 0:00:49]} a5 {[%emt 0:04:48]} 11. Re1 {[%emt 0:05:12]} Ba6 {[%emt 0:02:05]} 12. Qe3 {[%emt 0:00:23]} Qc7 {[%emt 0:13:47]} 13. Na3 {[%emt 0:19:43]} h6 {[%emt 0:11:58]} 14. Ba4 {[%emt 0:03:58]} cxd4 {[%emt 0:08:54]} 15. cxd4 {[%emt 0:00:16]} Na7 {[%emt 0:04:59]} 16. Bxd7+ {[%emt 0:14:32]} Kxd7 {[%emt 0:04:38]} 17. Qf4 {[%emt 0:02:52]} f5 {[%emt 0:02:34]} 18. exf6 {[%emt 0:00:44]} Qxf4 {[%emt 0:00:08]} 19. Bxf4 {[%emt 0:00:02]} gxf6 {[%emt 0:00:21]} 20. Re3 {[%emt 0:02:11]} Rac8 {[%emt 0:00:59]} 21. Nh4 {[%emt 0:01:55]} Rhg8 {[%emt 0:05:49]} 22. Nf3 {[%emt 0:10:01]} h5 {[%emt 0:00:20]} 23. Rd1 {[%emt 0:05:22]} Bb4 {[%emt 0:04:02]} 24. Nb1 {[%emt 0:04:07]} Rc2 {[%emt 0:04:39]} 25. a3 {[%emt 0:00:26]} Bd6 {[%emt 0:03:56]} 26. Bxd6 {[%emt 0:00:31]} Kxd6 {[%emt 0:00:00]} 27. Rde1 {[%emt 0:00:01]} Re8 {[%emt 0:00:31]} 28. Nh4 {[%emt 0:01:03]} e5 {[%emt 0:02:08]} 29. Nf5+ {[%emt 0:00:35]} Kd7 {[%emt 0:00:06]} 30. Nc3 {[%emt 0:00:14]} Rxb2 {[%emt 0:01:13]} 31. Nxd5 {[%emt 0:00:45]} Re6 {[%emt 0:00:00]} 32. Nf4 {[%emt 0:01:07]} Nb5 {[%emt 0:01:02]} 33. Nxe6 {[%emt 0:01:00]} Kxe6 {[%emt 0:00:01]} 34. dxe5 {[%emt 0:02:45]} Kxf5 {[%emt 0:00:08]} 35. Rf3+ {[%emt 0:00:01]} Kg6 {[%emt 0:00:56]} 36. exf6 {[%emt 0:00:27]} Nd4 {[%emt 0:00:38]} 37. Rf4 {[%emt 0:00:32]} Re2 {[%emt 0:00:45]} 38. Rd1 {[%emt 0:00:43]} Ne6 {[%emt 0:00:26]} 39. f7 {[%emt 0:00:56]} Kg7 {[%emt 0:00:20]} 40. Rd8 {[%emt 0:00:00]} Nf8 {[%emt 0:00:00]} 41. Rf3 {[%emt 0:01:01]} Bb7 {[%emt 0:03:28]} 42. Rf5 {[%emt 0:01:22]} Be4 {[%emt 0:01:46]} 43. Re5 {[%emt 0:00:45]} Kxf7 {[%emt 0:00:17]} 44. Rde8 {[%emt 0:00:32]} Ra2 {[%emt 0:02:43]} 45. Rxe4 {[%emt 0:00:06]} Rxa3 {[%emt 0:00:00]} 46. Rb8 {[%emt 0:00:21]} Nd7 {[%emt 0:00:53]} 47. Rb7 {[%emt 0:00:05]} Rd3 {[%emt 0:00:06]} 48. Re5 {[%emt 0:06:14]} a4 {[%emt 0:03:46]} 49. Ra7 {[%emt 0:01:52]} Kg6 {[%emt 0:04:18]} 50. Rb5 {[%emt 0:02:09]} Rd1+ {[%emt 0:02:53]} 51. Kh2 {[%emt 0:00:07]} Rd4 {[%emt 0:00:01]} 52. Rb1 {[%emt 0:00:43]} Kf5 {[%emt 0:02:13]} 53. Ra6 {[%emt 0:02:09]} Ke4 {[%emt 0:01:21]} 54. Ra1 {[%emt 0:00:09]} b5 {[%emt 0:02:23]} 55. Rb1 {[%emt 0:00:07]} Nc5 {[%emt 0:07:03]} 56. Ra5 {[%emt 0:00:08]} b4 {[%emt 0:03:18]} 57. Rxc5 {[%emt 0:00:08]} b3 {[%emt 0:00:27]} 58. Ra5 {[%emt 0:05:01]} Rb4 {[%emt 0:00:51]} 59. h4 {[%emt 0:07:33]} Kd3 {[%emt 0:01:09]} 60. Rxa4 {[%emt 0:00:15]} Rxa4 {[%emt 0:00:06]} 61. Rxb3+ {[%emt 0:00:05]} Kc2 {[%emt 0:01:20]} 62. Rb5 {[%emt 0:00:45]} Rxh4+ {[%emt 0:00:22]} 63. Kg3 {[%emt 0:00:03]} Rh1 {[%emt 0:00:57]} 64. Rb4 {[%emt 0:00:03]} Ra1 {[%emt 0:00:54]} 65. Kh4 {[%emt 0:00:20]} Rh1+ {[%emt 0:00:31]} 66. Kg3 {[%emt 0:01:52]} Ra1 {[%emt 0:00:07]} 67. f4 {[%emt 0:00:18]} Kd3 {[%emt 0:00:45]} 68. f5 {[%emt 0:00:17]} Ke3 {[%emt 0:00:40]} 69. Rh4 {[%emt 0:03:27]} Rf1 {[%emt 0:00:36]} 70. Rxh5 {[%emt 0:00:14]} Ke4 {[%emt 0:00:10]} 71. Kh4 {[%emt 0:02:50]} Rf2 {[%emt 0:00:45]} 72. Rg5 {[%emt 0:05:01]} Ke5 {[%emt 0:00:39]} 73. g4 {[%emt 0:01:09]} Rh2+ {[%emt 0:00:27]} 74. Kg3 {[%emt 0:00:03]} Rh1 {[%emt 0:00:09]} 75. Rg6 {[%emt 0:00:26]} Rg1+ {[%emt 0:00:18]} 76. Kf2 {[%emt 0:00:45]} Ra1 {[%emt 0:00:07]} 77. f6 {[%emt 0:00:36]} Ra2+ {[%emt 0:00:44]} 78. Ke3 {[%emt 0:00:41]} Ra3+ {[%emt 0:00:07]} 79. Ke2 {[%emt 0:00:19]} Ke6 {[%emt 0:00:25]} 80. g5 {[%emt 0:00:11]} Ra2+ {[%emt 0:00:19]} 81. Kd3 {[%emt 0:00:44]} Ra3+ {[%emt 0:00:05]} 82. Kc4 {[%emt 0:00:33]} Kf7 {[%emt 0:00:34]} 83. Rg7+ {[%emt 0:00:04]} Kf8 {[%emt 0:00:02]} 84. Kd5 {[%emt 0:00:48]} 1-0

[Event "EYTCC Open U18 2022"]
[Site "Thessaloniki"]
[Date "2022.07.13"]
[Round "2.28"]
[White "Jovanovski, Teodor"]
[Black "Kayrak, Murat"]
[Result "0-1"]
[ECO "D31"]
[WhiteElo "1944"]
[BlackElo "1561"]
[Annotator "ChessBase"]
[PlyCount "90"]
[EventDate "2022.07.12"]
[EventType "team-tourn"]
[EventCountry "GRE"]
[SourceTitle "playchess.com"]
[Source "ChessBase"]
[SourceQuality "1"]
[WhiteTeam "Macedonia"]
[BlackTeam "Turkey"]
[WhiteTeamCountry "MKD"]
[BlackTeamCountry "TUR"]
[TimeControl "40/5400+30:1800+30"]

1. d4 {[%emt 0:00:26]} d5 {[%emt 0:00:13]} 2. c4 {[%emt 0:00:10]} e6 {[%emt 0:00:06]} 3. Nc3 {[%emt 0:00:15]} Be7 {[%emt 0:00:13]} 4. cxd5 {[%emt 0:04:41]} exd5 {[%emt 0:00:08]} 5. Qc2 {[%emt 0:08:51]} c6 {[%emt 0:01:51]} 6. Bf4 {[%emt 0:03:50]} Nf6 {[%emt 0:03:13]} 7. e3 {[%emt 0:06:20]} Nbd7 {[%emt 0:02:35]} 8. Bd3 {[%emt 0:01:41]} Nh5 {[%emt 0:01:19]} 9. O-O-O {[%emt 0:08:22]} Nxf4 {[%emt 0:01:25]} 10. exf4 {[%emt 0:01:21]} Nf6 {[%emt 0:01:21]} 11. h3 {[%emt 0:03:00]} Qd6 {[%emt 0:02:40]} 12. g3 {[%emt 0:04:25]} Bd7 {[%emt 0:01:21]} 13. Nf3 {[%emt 0:06:17]} Rc8 {[%emt 0:16:12]} 14. Ne5 {[%emt 0:06:09]} a6 {[%emt 0:04:36]} 15. g4 {[%emt 0:05:49]} c5 {[%emt 0:20:06]} 16. dxc5 {[%emt 0:04:33]} Rxc5 {[%emt 0:00:53]} 17. Kb1 {[%emt 0:05:49]} d4 {[%emt 0:08:42]} 18. g5 {[%emt 0:11:56]} dxc3 {[%emt 0:16:00]} 19. Bg6 {[%emt 0:12:46]} Qxd1+ {[%emt 0:06:21]} 20. Rxd1 {[%emt 0:01:34]} hxg6 {[%emt 0:00:34]} 21. gxf6 {[%emt 0:00:47]} Bf5 {[%emt 0:00:49]} 22. Nd3 {[%emt 0:00:40]} gxf6 {[%emt 0:04:51]} 23. b3 {[%emt 0:01:44]} Rxh3 {[%emt 0:00:45]} 24. Kc1 {[%emt 0:00:30]} Rd5 {[%emt 0:01:01]} 25. f3 {[%emt 0:00:23]} Rxf3 {[%emt 0:00:25]} 26. Qxc3 {[%emt 0:00:36]} Rfxd3 {[%emt 0:00:13]} 27. Rxd3 {[%emt 0:00:21]} Rxd3 {[%emt 0:00:21]} 28. Qa5 {[%emt 0:00:38]} Bd6 {[%emt 0:01:29]} 29. Kb2 {[%emt 0:00:18]} Be4 {[%emt 0:01:46]} 30. Qe1 {[%emt 0:00:43]} f5 {[%emt 0:00:11]} 31. Qh4 {[%emt 0:00:19]} Be7 {[%emt 0:00:38]} 32. Qh8+ {[%emt 0:00:12]} Kd7 {[%emt 0:00:20]} 33. Qg7 {[%emt 0:00:16]} Ke8 {[%emt 0:01:10]} 34. Qh8+ {[%emt 0:00:24]} Kd7 {[%emt 0:00:36]} 35. Qg7 {[%emt 0:00:09]} Bd5 {[%emt 0:00:59]} 36. Kc2 {[%emt 0:00:39]} Be4 {[%emt 0:01:26]} 37. Kb2 {[%emt 0:00:33]} Rd2+ {[%emt 0:00:00]} 38. Kc3 {[%emt 0:01:08]} Rc2+ {[%emt 0:00:00]} 39. Kd4 {[%emt 0:00:16]} Bc5+ {[%emt 0:00:49]} 40. Ke5 {[%emt 0:00:00]} Bd6+ {[%emt 0:00:00]} 41. Kd4 {[%emt 0:06:53]} Ke6 {[%emt 0:01:58]} 42. b4 {[%emt 0:09:13]} Bxb4 {[%emt 0:01:08]} 43. Qe5+ {[%emt 0:10:49]} Kd7 {[%emt 0:00:11]} 44. Qb8 {[%emt 0:01:02]} Rc8 {[%emt 0:00:16]} 45. Qa7 {[%emt 0:01:35]} Bc5+ {[%emt 0:00:07]} 0-1

[Event "EYTCC Open U18 2022"]
[Site "Thessaloniki"]
[Date "2022.07.13"]
[Round "2.29"]
[White "Jordanov, Mihail"]
[Black "Aydogdu, Selcan Ayberk"]
[Result "*"]
[ECO "B90"]
[WhiteElo "2158"]
[BlackElo "1902"]
[Annotator "ChessBase"]
[PlyCount "28"]
[EventDate "2022.07.12"]
[EventType "team-tourn"]
[EventCountry "GRE"]
[SourceTitle "playchess.com"]
[Source "ChessBase"]
[SourceQuality "1"]
[WhiteTeam "Macedonia"]
[BlackTeam "Turkey"]
[WhiteTeamCountry "MKD"]
[BlackTeamCountry "TUR"]
[TimeControl "40/5400+30:1800+30"]

1. e4 {[%emt 0:00:04]} c5 {[%emt 0:00:26]} 2. Nf3 {[%emt 0:00:04]} d6 {[%emt 0:00:32]} 3. d4 {[%emt 0:00:08]} cxd4 {[%emt 0:00:06]} 4. Nxd4 {[%emt 0:00:04]} Nf6 {[%emt 0:00:14]} 5. Nc3 {[%emt 0:00:02]} a6 {[%emt 0:00:09]} 6. Be3 {[%emt 0:00:04]} e5 {[%emt 0:00:26]} 7. Nf3 {[%emt 0:00:08]} Be7 {[%emt 0:00:14]} 8. Nd2 {[%emt 0:00:04]} b5 {[%emt 0:00:24]} 9. a4 {[%emt 0:00:05]} b4 {[%emt 0:00:22]} 10. Nd5 {[%emt 0:00:03]} Nxd5 {[%emt 0:00:24]} 11. exd5 {[%emt 0:00:03]} O-O {[%emt 0:00:23]} 12. a5 {[%emt 0:00:06]} Nd7 {[%emt 0:02:47]} 13. Nc4 {[%emt 0:00:32]} f5 {[%emt 0:00:16]} 14. Be2 {[%emt 0:00:47]} Qe8 {[%emt 0:11:47]} *

[Event "EYTCC Open U18 2022"]
[Site "Thessaloniki"]
[Date "2022.07.13"]
[Round "2.29"]
[White "Stoimenidis, Dimitrios"]
[Black "Herega, Nejc"]
[Result "1/2-1/2"]
[ECO "B90"]
[WhiteElo "1993"]
[BlackElo "2160"]
[Annotator "ChessBase"]
[PlyCount "71"]
[EventDate "2022.07.12"]
[EventType "team-tourn"]
[EventCountry "GRE"]
[SourceTitle "playchess.com"]
[Source "ChessBase"]
[SourceQuality "1"]
[WhiteTeam "Greece"]
[BlackTeam "Slovenia"]
[WhiteTeamCountry "GRE"]
[BlackTeamCountry "SLO"]
[TimeControl "40/5400+30:1800+30"]

1. e4 {[%emt 0:00:04]} c5 {[%emt 0:00:26]} 2. Nf3 {[%emt 0:00:04]} d6 {[%emt 0:00:32]} 3. d4 {[%emt 0:00:08]} cxd4 {[%emt 0:00:06]} 4. Nxd4 {[%emt 0:00:04]} Nf6 {[%emt 0:00:14]} 5. Nc3 {[%emt 0:00:02]} a6 {[%emt 0:00:09]} 6. Be3 {[%emt 0:00:04]} e5 {[%emt 0:00:26]} 7. Nf3 {[%emt 0:00:08]} Be7 {[%emt 0:00:14]} 8. Nd2 {[%emt 0:00:04]} b5 {[%emt 0:00:24]} 9. a4 {[%emt 0:00:05]} b4 {[%emt 0:00:22]} 10. Nd5 {[%emt 0:00:03]} Nxd5 {[%emt 0:00:24]} 11. exd5 {[%emt 0:00:03]} O-O {[%emt 0:00:23]} 12. a5 {[%emt 0:00:06]} Nd7 {[%emt 0:02:47]} 13. Nc4 {[%emt 0:00:32]} f5 {[%emt 0:00:16]} 14. Be2 {[%emt 0:00:47]} Qe8 {[%emt 0:11:47]} 15. f4 {[%emt 0:32:08]} Qg6 {[%emt 0:12:13]} 16. O-O {[%emt 0:01:02]} Rb8 {[%emt 0:06:36]} 17. Rf3 {[%emt 0:08:51]} Bb7 {[%emt 0:07:46]} 18. Rg3 {[%emt 0:07:34]} Qf7 {[%emt 0:05:28]} 19. fxe5 {[%emt 0:02:28]} Nxe5 {[%emt 0:12:45]} 20. Bf4 {[%emt 0:06:51]} Rfe8 {[%emt 0:07:28]} 21. Nxe5 {[%emt 0:01:38]} dxe5 {[%emt 0:00:33]} 22. Bh6 {[%emt 0:08:42]} g6 {[%emt 0:05:07]} 23. Bc4 {[%emt 0:01:58]} Rbd8 {[%emt 0:02:15]} 24. Rd3 {[%emt 0:01:40]} e4 {[%emt 0:06:27]} 25. Rd2 {[%emt 0:04:36]} Bc5+ {[%emt 0:00:50]} 26. Kh1 {[%emt 0:01:16]} e3 {[%emt 0:03:31]} 27. Rd3 {[%emt 0:05:00]} e2 {[%emt 0:03:45]} 28. Qd2 {[%emt 0:00:12]} Bf2 {[%emt 0:01:27]} 29. Be3 {[%emt 0:00:37]} e1=Q+ {[%emt 0:01:36]} 30. Rxe1 {[%emt 0:00:10]} Bxe1 {[%emt 0:00:03]} 31. Qxe1 {[%emt 0:00:13]} Bxd5 {[%emt 0:02:34]} 32. Qd2 {[%emt 0:03:01]} f4 {[%emt 0:02:09]} 33. Bb6 {[%emt 0:10:29]} Bxc4 {[%emt 0:02:40]} 34. Rxd8 {[%emt 0:00:28]} Bb5 {[%emt 0:00:45]} 35. Rxe8+ {[%emt 0:04:46]} Bxe8 {[%emt 0:00:01]} 36. Qxb4 {[%emt 0:01:51]} 1/2-1/2

[Event "EYTCC Open U18 2022"]
[Site "Thessaloniki"]
[Date "2022.07.13"]
[Round "2.30"]
[White "Olenik Campa, Rudi"]
[Black "Karamichos, Michail"]
[Result "1/2-1/2"]
[ECO "A06"]
[WhiteElo "2203"]
[BlackElo "1839"]
[Annotator "ChessBase"]
[PlyCount "85"]
[EventDate "2022.07.12"]
[EventType "team-tourn"]
[EventCountry "GRE"]
[SourceTitle "playchess.com"]
[Source "ChessBase"]
[SourceQuality "1"]
[WhiteTeam "Slovenia"]
[BlackTeam "Greece"]
[WhiteTeamCountry "SLO"]
[BlackTeamCountry "GRE"]
[TimeControl "40/5400+30:1800+30"]

1. g3 {[%emt 0:00:03]} d5 {[%emt 0:00:48]} 2. Nf3 {[%emt 0:00:35]} Nf6 {[%emt 0:00:21]} 3. Bg2 {[%emt 0:00:04]} e6 {[%emt 0:01:36]} 4. O-O {[%emt 0:00:15]} Bd6 {[%emt 0:00:13]} 5. d4 {[%emt 0:02:18]} h6 {[%emt 0:00:46]} 6. c4 {[%emt 0:00:16]} O-O {[%emt 0:00:10]} 7. Nc3 {[%emt 0:00:35]} Nc6 {[%emt 0:01:18]} 8. Re1 {[%emt 0:02:25]} dxc4 {[%emt 0:00:24]} 9. Qa4 {[%emt 0:04:42]} e5 {[%emt 0:02:50]} 10. d5 {[%emt 0:07:51]} Nb4 {[%emt 0:13:47]} 11. Nxe5 {[%emt 0:08:33]} Qe8 {[%emt 0:04:25]} 12. Qxe8 {[%emt 0:04:33]} Rxe8 {[%emt 0:00:08]} 13. Nxc4 {[%emt 0:00:08]} Nc2 {[%emt 0:00:38]} 14. Nxd6 {[%emt 0:00:22]} cxd6 {[%emt 0:00:41]} 15. Bf4 {[%emt 0:00:05]} Rd8 {[%emt 0:05:23]} 16. Nb5 {[%emt 0:06:00]} Ne8 {[%emt 0:02:04]} 17. a4 {[%emt 0:05:56]} a6 {[%emt 0:09:14]} 18. Nc3 {[%emt 0:00:05]} g5 {[%emt 0:03:52]} 19. Be3 {[%emt 0:00:05]} Bd7 {[%emt 0:01:49]} 20. h4 {[%emt 0:03:25]} f6 {[%emt 0:01:15]} 21. a5 {[%emt 0:05:18]} Kf7 {[%emt 0:03:17]} 22. Be4 {[%emt 0:00:45]} Nxa1 {[%emt 0:01:06]} 23. Rxa1 {[%emt 0:00:04]} Nc7 {[%emt 0:02:43]} 24. Bb6 {[%emt 0:05:45]} Rac8 {[%emt 0:01:16]} 25. Bd3 {[%emt 0:03:48]} Ke7 {[%emt 0:11:06]} 26. hxg5 {[%emt 0:01:38]} hxg5 {[%emt 0:00:08]} 27. f4 {[%emt 0:02:33]} gxf4 {[%emt 0:04:28]} 28. gxf4 {[%emt 0:00:03]} Rh8 {[%emt 0:04:24]} 29. Kf2 {[%emt 0:01:09]} Nb5 {[%emt 0:01:31]} 30. Nxb5 {[%emt 0:10:51]} Bxb5 {[%emt 0:00:31]} 31. Bxb5 {[%emt 0:00:06]} axb5 {[%emt 0:00:05]} 32. Rg1 {[%emt 0:00:08]} Kf7 {[%emt 0:01:02]} 33. Bd4 {[%emt 0:06:47]} Rc4 {[%emt 0:02:19]} 34. e3 {[%emt 0:00:44]} Rh5 {[%emt 0:05:53]} 35. Kf3 {[%emt 0:01:12]} Rxd5 {[%emt 0:05:22]} 36. Rh1 {[%emt 0:00:13]} Kg6 {[%emt 0:05:33]} 37. Rg1+ {[%emt 0:00:04]} Kf7 {[%emt 0:00:14]} 38. Rh1 {[%emt 0:00:04]} Kg6 {[%emt 0:00:23]} 39. Rg1+ {[%emt 0:00:04]} Kf7 40. Rh1 {[%emt 0:00:00]} Kg6 {[%emt 0:00:00]} 41. Rg1+ {[%emt 0:03:31]} Kf7 {[%emt 0:07:16]} 42. Rh1 {[%emt 0:00:04]} Kg6 {[%emt 0:04:02]} 43. Ke4 {[%emt 0:00:44]} 1/2-1/2

[Event "EYTCC Open U18 2022"]
[Site "Thessaloniki"]
[Date "2022.07.13"]
[Round "2.30"]
[White "Turk, Talha Gunes"]
[Black "Zlatkov, Anton"]
[Result "*"]
[ECO "A06"]
[WhiteElo "1597"]
[BlackElo "2149"]
[Annotator "ChessBase"]
[PlyCount "20"]
[EventDate "2022.07.12"]
[EventType "team-tourn"]
[EventCountry "GRE"]
[SourceTitle "playchess.com"]
[Source "ChessBase"]
[SourceQuality "1"]
[WhiteTeam "Turkey"]
[BlackTeam "Macedonia"]
[WhiteTeamCountry "TUR"]
[BlackTeamCountry "MKD"]
[TimeControl "40/5400+30:1800+30"]

1. g3 {[%emt 0:00:03]} d5 {[%emt 0:00:48]} 2. Nf3 {[%emt 0:00:35]} Nf6 {[%emt 0:00:21]} 3. Bg2 {[%emt 0:00:04]} e6 {[%emt 0:01:36]} 4. O-O {[%emt 0:00:15]} Bd6 {[%emt 0:00:13]} 5. d4 {[%emt 0:02:18]} h6 {[%emt 0:00:46]} 6. c4 {[%emt 0:00:16]} O-O {[%emt 0:00:10]} 7. Nc3 {[%emt 0:00:35]} Nc6 {[%emt 0:01:18]} 8. Re1 {[%emt 0:02:25]} dxc4 {[%emt 0:00:24]} 9. Qa4 {[%emt 0:04:42]} e5 {[%emt 0:02:50]} 10. d5 {[%emt 0:07:51]} Nb4 {[%emt 0:13:47]} *

[Event "EYTCC Open U18 2022"]
[Site "Thessaloniki"]
[Date "2022.07.13"]
[Round "2.31"]
[White "Tagkaloglou, Savvas Stefanos"]
[Black "Gregoric, Andraz"]
[Result "0-1"]
[ECO "C68"]
[WhiteElo "1724"]
[BlackElo "2199"]
[Annotator "ChessBase"]
[PlyCount "40"]
[EventDate "2022.07.12"]
[EventType "team-tourn"]
[EventCountry "GRE"]
[SourceTitle "playchess.com"]
[Source "ChessBase"]
[SourceQuality "1"]
[WhiteTeam "Greece"]
[BlackTeam "Slovenia"]
[WhiteTeamCountry "GRE"]
[BlackTeamCountry "SLO"]
[TimeControl "40/5400+30:1800+30"]

1. e4 e5 2. Nf3 Nc6 3. Bb5 a6 4. Bxc6 {[%emt 0:00:32]} dxc6 5. O-O f6 6. d4 exd4 7. e5 Bg4 8. exf6 Nxf6 9. Re1+ Be7 {[%emt 0:42:19]} 10. Qxd4 {[%emt 0:21:31]} Bxf3 11. Qxd8+ Rxd8 {[%emt 0:01:10]} 12. gxf3 {[%emt 0:00:11]} O-O {[%emt 0:01:33]} 13. Bg5 {[%emt 0:16:22]} h6 {[%emt 0:04:10]} 14. Bf4 {[%emt 0:12:54]} Nd5 {[%emt 0:07:40]} 15. Bg3 {[%emt 0:01:24]} Bb4 {[%emt 0:06:12]} 16. c3 {[%emt 0:00:15]} Bd6 17. Kg2 Rf7 {[%emt 0:05:44]} 18. Rd1 {[%emt 0:05:39]} Bxg3 {[%emt 0:03:30]} 19. Kxg3 {[%emt 0:00:08]} Rd6 {[%emt 0:01:54]} 20. Rd4 {[%emt 0:01:25]} h5 {[%emt 0:01:49]} 0-1

[Event "EYTCC Open U18 2022"]
[Site "Thessaloniki"]
[Date "2022.07.13"]
[Round "2.32"]
[White "Olenik Campa, Rudi"]
[Black "Karamichos, Michail"]
[Result "*"]
[ECO "C18"]
[WhiteElo "2203"]
[BlackElo "1839"]
[Annotator "ChessBase"]
[PlyCount "32"]
[EventDate "2022.07.12"]
[EventType "team-tourn"]
[EventCountry "GRE"]
[SourceTitle "playchess.com"]
[Source "ChessBase"]
[SourceQuality "1"]
[WhiteTeam "Slovenia"]
[BlackTeam "Greece"]
[WhiteTeamCountry "SLO"]
[BlackTeamCountry "GRE"]
[TimeControl "40/5400+30:1800+30"]

1. e4 {[%emt 0:00:10]} e6 {[%emt 0:00:17]} 2. d4 {[%emt 0:00:10]} d5 {[%emt 0:00:05]} 3. Nc3 {[%emt 0:00:06]} Bb4 {[%emt 0:00:20]} 4. e5 {[%emt 0:00:07]} c5 {[%emt 0:00:06]} 5. a3 {[%emt 0:00:06]} Bxc3+ {[%emt 0:00:16]} 6. bxc3 {[%emt 0:00:06]} Qa5 {[%emt 0:00:19]} 7. Bd2 {[%emt 0:00:07]} Qa4 {[%emt 0:00:17]} 8. Nf3 {[%emt 0:00:41]} b6 {[%emt 0:01:06]} 9. h4 {[%emt 0:00:12]} Ba6 {[%emt 0:06:10]} 10. h5 {[%emt 0:00:18]} h6 {[%emt 0:00:27]} 11. Rh4 {[%emt 0:00:13]} Bxf1 {[%emt 0:02:36]} 12. Kxf1 {[%emt 0:00:04]} Ne7 {[%emt 0:03:39]} 13. dxc5 {[%emt 0:00:45]} Qb5+ {[%emt 0:01:38]} 14. Kg1 {[%emt 0:00:14]} bxc5 {[%emt 0:02:16]} 15. Rg4 {[%emt 0:00:49]} Nf5 {[%emt 0:15:17]} 16. Rb1 {[%emt 0:04:56]} Qd7 {[%emt 0:02:54]} *

[Event "EYTCC Open U18 2022"]
[Site "Thessaloniki"]
[Date "2022.07.13"]
[Round "2.32"]
[White "Skrbec, Leon"]
[Black "Karakotsios, Konstantinos"]
[Result "1-0"]
[ECO "C18"]
[WhiteElo "2103"]
[BlackElo "1376"]
[Annotator "ChessBase"]
[PlyCount "61"]
[EventDate "2022.07.12"]
[EventType "team-tourn"]
[EventCountry "GRE"]
[SourceTitle "playchess.com"]
[Source "ChessBase"]
[SourceQuality "1"]
[WhiteTeam "Slovenia"]
[BlackTeam "Greece"]
[WhiteTeamCountry "SLO"]
[BlackTeamCountry "GRE"]
[TimeControl "40/5400+30:1800+30"]

1. e4 {[%emt 0:00:10]} e6 {[%emt 0:00:17]} 2. d4 {[%emt 0:00:10]} d5 {[%emt 0:00:05]} 3. Nc3 {[%emt 0:00:06]} Bb4 {[%emt 0:00:20]} 4. e5 {[%emt 0:00:07]} c5 {[%emt 0:00:06]} 5. a3 {[%emt 0:00:06]} Bxc3+ {[%emt 0:00:16]} 6. bxc3 {[%emt 0:00:06]} Qa5 {[%emt 0:00:19]} 7. Bd2 {[%emt 0:00:07]} Qa4 {[%emt 0:00:17]} 8. Nf3 {[%emt 0:00:41]} b6 {[%emt 0:01:06]} 9. h4 {[%emt 0:00:12]} Ba6 {[%emt 0:06:10]} 10. h5 {[%emt 0:00:18]} h6 {[%emt 0:00:27]} 11. Rh4 {[%emt 0:00:13]} Bxf1 {[%emt 0:02:36]} 12. Kxf1 {[%emt 0:00:04]} Ne7 {[%emt 0:03:39]} 13. dxc5 {[%emt 0:00:45]} Qb5+ {[%emt 0:01:38]} 14. Kg1 {[%emt 0:00:14]} bxc5 {[%emt 0:02:16]} 15. Rg4 {[%emt 0:00:49]} Nf5 {[%emt 0:15:17]} 16. Rb1 {[%emt 0:04:56]} Qd7 {[%emt 0:02:54]} 17. Nh4 {[%emt 0:03:22]} Nxh4 {[%emt 0:12:28]} 18. Rxh4 {[%emt 0:00:06]} Nc6 {[%emt 0:03:39]} 19. Rg4 {[%emt 0:01:38]} Kf8 {[%emt 0:16:38]} 20. Be3 {[%emt 0:02:56]} Rc8 {[%emt 0:13:15]} 21. Bxc5+ {[%emt 0:00:35]} Ne7 {[%emt 0:00:20]} 22. Bd6 {[%emt 0:02:32]} Rxc3 {[%emt 0:04:14]} 23. Rb8+ {[%emt 0:00:18]} Rc8 {[%emt 0:00:09]} 24. Rxc8+ {[%emt 0:00:09]} Qxc8 {[%emt 0:00:07]} 25. Rb4 {[%emt 0:00:10]} Kg8 {[%emt 0:04:43]} 26. Rb8 {[%emt 0:00:14]} Kh7 {[%emt 0:00:06]} 27. Rxc8 {[%emt 0:00:10]} Nxc8 {[%emt 0:00:06]} 28. Qd3+ {[%emt 0:00:08]} g6 {[%emt 0:00:10]} 29. hxg6+ {[%emt 0:00:06]} fxg6 {[%emt 0:00:04]} 30. Qa6 {[%emt 0:00:15]} Nxd6 {[%emt 0:00:43]} 31. exd6 {[%emt 0:00:05]} 1-0